[Event "*** Titled Tuesday Blitz"]
[Site "Chess.com"]
[Date "2020.04.14"]
[Round "1"]
[White "Halvard"]
[Black "AwareIdea"]
[Result "0-1"]
[WhiteElo "2080"]
[BlackElo "2534"]
[TimeControl "180+1"]
[EndTime "10:07:46 PDT"]
[Termination "AwareIdea won on time"]

1. e4 {[%clk 0:03:00.5]} 1... e5 {[%clk 0:02:58.9]} 2. f4 {[%clk 0:02:59.9]}
2... d5 {[%clk 0:02:58.5]} 3. exd5 {[%clk 0:02:58.8]} 3... exf4 {[%clk
0:02:58.3]} 4. Nf3 {[%clk 0:02:58.4]} 4... Nf6 {[%clk 0:02:58.2]} 5. Bb5+ {[%clk
0:02:57.7]} 5... c6 {[%clk 0:02:57.8]} 6. dxc6 {[%clk 0:02:56.5]} 6... Nxc6
{[%clk 0:02:58.7]} 7. d4 {[%clk 0:02:55.3]} 7... Bd6 {[%clk 0:02:57.1]} 8. O-O
{[%clk 0:02:54.3]} 8... O-O {[%clk 0:02:55.8]} 9. c3 {[%clk 0:02:50.9]} 9... Bg4
{[%clk 0:02:55]} 10. Nbd2 {[%clk 0:02:46.9]} 10... Re8 {[%clk 0:02:48]} 11. Bd3
{[%clk 0:02:42.6]} 11... h6 {[%clk 0:02:46.1]} 12. Re1 {[%clk 0:02:33.9]} 12...
Qd7 {[%clk 0:02:39.6]} 13. Rxe8+ {[%clk 0:02:24.9]} 13... Rxe8 {[%clk
0:02:40.5]} 14. Qf1 {[%clk 0:02:24]} 14... Nd5 {[%clk 0:02:36.3]} 15. Nc4 {[%clk
0:02:21.8]} 15... Bb8 {[%clk 0:02:31]} 16. a4 {[%clk 0:02:07.4]} 16... a6 {[%clk
0:02:27.5]} 17. a5 {[%clk 0:02:05.6]} 17... Bc7 {[%clk 0:02:11.4]} 18. Bd2
{[%clk 0:02:04]} 18... Ne3 {[%clk 0:02:06.5]} 19. Bxe3 {[%clk 0:01:53.7]} 19...
fxe3 {[%clk 0:02:07.4]} 20. Re1 {[%clk 0:01:53.4]} 20... Nxa5 {[%clk 0:01:25.4]}
21. Nxe3 {[%clk 0:01:47.6]} 21... Bxf3 {[%clk 0:01:15.2]} 22. Qxf3 {[%clk
0:01:46.8]} 22... Nc6 {[%clk 0:01:15]} 23. Qf5 {[%clk 0:01:13.4]} 23... Qxf5
{[%clk 0:01:06.9]} 24. Bxf5 {[%clk 0:01:13.1]} 24... Bf4 {[%clk 0:01:01.2]} 25.
Kf2 {[%clk 0:01:09.5]} 25... Kf8 {[%clk 0:00:54.5]} 26. g3 {[%clk 0:01:07]}
26... Bxe3+ {[%clk 0:00:50.6]} 27. Rxe3 {[%clk 0:01:07]} 27... Rd8 {[%clk
0:00:50.8]} 28. Be4 {[%clk 0:00:59.5]} 28... Na5 {[%clk 0:00:50]} 29. Rd3 {[%clk
0:00:53.8]} 29... b6 {[%clk 0:00:44.2]} 30. Bf3 {[%clk 0:00:25.8]} 30... Nc4
{[%clk 0:00:44]} 31. b3 {[%clk 0:00:24]} 31... Nd6 {[%clk 0:00:43.9]} 32. c4
{[%clk 0:00:19.4]} 32... Nf5 {[%clk 0:00:43.1]} 33. d5 {[%clk 0:00:18.9]} 33...
Nd6 {[%clk 0:00:43]} 34. Rc3 {[%clk 0:00:17.2]} 34... Rc8 {[%clk 0:00:40.5]} 35.
Be2 {[%clk 0:00:16]} 35... a5 {[%clk 0:00:40.1]} 36. Kf3 {[%clk 0:00:13.7]}
36... Nb5 {[%clk 0:00:38.8]} 37. Rd3 {[%clk 0:00:11.1]} 37... Nd6 {[%clk
0:00:37.7]} 38. Bd1 {[%clk 0:00:10.7]} 38... a4 {[%clk 0:00:37.3]} 39. bxa4
{[%clk 0:00:09.3]} 39... Rxc4 {[%clk 0:00:36.9]} 40. Rb3 {[%clk 0:00:07.5]}
40... Rd4 {[%clk 0:00:36.9]} 41. Rxb6 {[%clk 0:00:06.5]} 41... Rxd5 {[%clk
0:00:29.5]} 42. Bb3 {[%clk 0:00:03.5]} 42... Rd4 {[%clk 0:00:28.1]} 43. a5
{[%clk 0:00:02]} 43... Nc8 {[%clk 0:00:17.8]} 44. Rb8 {[%clk 0:00:01.8]} 44...
Rd8 {[%clk 0:00:17.2]} 0-1

[Event "*** Titled Tuesday Blitz"]
[Site "Chess.com"]
[Date "2020.04.14"]
[Round "1"]
[White "katchesskat"]
[Black "IwkooO"]
[Result "1-0"]
[WhiteElo "2165"]
[BlackElo "2530"]
[TimeControl "180+1"]
[EndTime "10:07:47 PDT"]
[Termination "katchesskat won by checkmate"]

1. c4 {[%clk 0:02:56.8]} 1... g6 {[%clk 0:02:55.4]} 2. e3 {[%clk 0:02:56.1]}
2... c5 {[%clk 0:02:53.6]} 3. Nf3 {[%clk 0:02:55.6]} 3... Nf6 {[%clk 0:02:53.1]}
4. a3 {[%clk 0:02:56.1]} 4... Bg7 {[%clk 0:02:53]} 5. Qc2 {[%clk 0:02:56.3]}
5... O-O {[%clk 0:02:52.8]} 6. Be2 {[%clk 0:02:51.4]} 6... b6 {[%clk 0:02:45.6]}
7. d3 {[%clk 0:02:51.1]} 7... Bb7 {[%clk 0:02:45.6]} 8. Nbd2 {[%clk 0:02:51.7]}
8... d5 {[%clk 0:02:45.8]} 9. O-O {[%clk 0:02:50.2]} 9... Nc6 {[%clk 0:02:39]}
10. h3 {[%clk 0:02:43.4]} 10... Rc8 {[%clk 0:02:38.4]} 11. Re1 {[%clk
0:02:38.6]} 11... Re8 {[%clk 0:02:37.8]} 12. b3 {[%clk 0:02:35]} 12... e5 {[%clk
0:02:24.7]} 13. cxd5 {[%clk 0:02:34.6]} 13... Nxd5 {[%clk 0:02:20.8]} 14. Bb2
{[%clk 0:02:33.9]} 14... Qd7 {[%clk 0:02:14.5]} 15. Rac1 {[%clk 0:02:33.3]}
15... Rcd8 {[%clk 0:02:06.2]} 16. Qb1 {[%clk 0:02:33]} 16... f5 {[%clk
0:02:00.4]} 17. Rcd1 {[%clk 0:02:10.9]} 17... h6 {[%clk 0:01:59.6]} 18. Qa1
{[%clk 0:02:05.1]} 18... Qe6 {[%clk 0:01:34.5]} 19. Nc4 {[%clk 0:02:01.7]} 19...
Rd7 {[%clk 0:01:29.4]} 20. Nh2 {[%clk 0:01:50.5]} 20... h5 {[%clk 0:01:24.9]}
21. Nf3 {[%clk 0:01:48.7]} 21... Bf6 {[%clk 0:01:22.8]} 22. d4 {[%clk
0:01:39.2]} 22... cxd4 {[%clk 0:01:15]} 23. exd4 {[%clk 0:01:38.9]} 23... e4
{[%clk 0:01:15.2]} 24. Nfe5 {[%clk 0:01:38.8]} 24... Rg7 {[%clk 0:01:01.5]} 25.
Nxc6 {[%clk 0:01:35]} 25... Bxc6 {[%clk 0:01:02.4]} 26. Ne5 {[%clk 0:01:35.4]}
26... Bb7 {[%clk 0:01:00.9]} 27. Bc4 {[%clk 0:01:32.2]} 27... Kh7 {[%clk
0:01:01.2]} 28. Qb1 {[%clk 0:01:30.9]} 28... Qd6 {[%clk 0:00:59.2]} 29. Rd2
{[%clk 0:01:21.8]} 29... Bg5 {[%clk 0:00:58.4]} 30. Rde2 {[%clk 0:01:19]} 30...
Nf4 {[%clk 0:00:58.3]} 31. Rc2 {[%clk 0:01:17.9]} 31... Ree7 {[%clk 0:00:56.3]}
32. d5 {[%clk 0:01:17.3]} 32... Bf6 {[%clk 0:00:54.7]} 33. Nc6 {[%clk
0:01:17.1]} 33... Bxc6 {[%clk 0:00:54.1]} 34. dxc6 {[%clk 0:01:14]} 34... Bxb2
{[%clk 0:00:54.3]} 35. Qxb2 {[%clk 0:01:14.1]} 35... Rc7 {[%clk 0:00:54.6]} 36.
Rd2 {[%clk 0:01:05.4]} 36... Qc5 {[%clk 0:00:49.7]} 37. h4 {[%clk 0:00:57.1]}
37... Qxc6 {[%clk 0:00:48.8]} 38. Qe5 {[%clk 0:00:54.6]} 38... Nxg2 {[%clk
0:00:32.3]} 39. Kxg2 {[%clk 0:00:53.2]} 39... e3+ {[%clk 0:00:32.8]} 40. Rd5
{[%clk 0:00:52.5]} 40... Rce7 {[%clk 0:00:32.3]} 41. Qd4 {[%clk 0:00:46.6]}
41... Re4 {[%clk 0:00:32.4]} 42. Qd3 {[%clk 0:00:44.2]} 42... Rg4+ {[%clk
0:00:31.1]} 43. Kf1 {[%clk 0:00:43.6]} 43... exf2 {[%clk 0:00:31.5]} 44. Kxf2
{[%clk 0:00:43.4]} 44... Rxh4 {[%clk 0:00:31.3]} 45. Rg1 {[%clk 0:00:42.6]}
45... Rf4+ {[%clk 0:00:31.3]} 46. Kg3 {[%clk 0:00:39.7]} 46... Rg4+ {[%clk
0:00:31.7]} 47. Kh2 {[%clk 0:00:39.8]} 47... Qc7+ {[%clk 0:00:31.4]} 48. Rd6
{[%clk 0:00:35.7]} 48... Rd7 {[%clk 0:00:31.4]} 49. Rd1 {[%clk 0:00:32.2]} 49...
Re7 {[%clk 0:00:27.2]} 50. Qd5 {[%clk 0:00:28.4]} 50... Rge4 {[%clk 0:00:27.1]}
51. Qg8+ {[%clk 0:00:26.5]} 51... Kh6 {[%clk 0:00:27.8]} 52. Qxg6# {[%clk
0:00:27]} 1-0

[Event "*** Titled Tuesday Blitz"]
[Site "Chess.com"]
[Date "2020.04.14"]
[Round "1"]
[White "mishanick"]
[Black "BrianEscalante"]
[Result "1-0"]
[WhiteElo "3005"]
[BlackElo "2501"]
[TimeControl "180+1"]
[EndTime "10:07:48 PDT"]
[Termination "mishanick won by resignation"]

1. d4 {[%clk 0:03:00.9]} 1... Nf6 {[%clk 0:02:58.5]} 2. c4 {[%clk 0:03:01.3]}
2... c5 {[%clk 0:02:58.5]} 3. d5 {[%clk 0:03:01]} 3... b5 {[%clk 0:02:59]} 4.
cxb5 {[%clk 0:03:01.9]} 4... a6 {[%clk 0:02:59.5]} 5. bxa6 {[%clk 0:03:02.6]}
5... g6 {[%clk 0:02:58.4]} 6. Nc3 {[%clk 0:03:03.1]} 6... Bg7 {[%clk 0:02:58.7]}
7. e4 {[%clk 0:03:03.5]} 7... O-O {[%clk 0:02:59.3]} 8. Be2 {[%clk 0:03:03.5]}
8... Qa5 {[%clk 0:02:49.5]} 9. Bd2 {[%clk 0:03:01.6]} 9... Bxa6 {[%clk
0:02:46.3]} 10. e5 {[%clk 0:03:01.9]} 10... Ne8 {[%clk 0:02:46.4]} 11. Nf3
{[%clk 0:03:01.8]} 11... Bxe2 {[%clk 0:02:06.1]} 12. Qxe2 {[%clk 0:03:02.7]}
12... Qa6 {[%clk 0:02:06.6]} 13. h4 {[%clk 0:02:48]} 13... h5 {[%clk 0:01:54.5]}
14. Bg5 {[%clk 0:02:29.2]} 14... f6 {[%clk 0:01:48.2]} 15. exf6 {[%clk
0:02:28.4]} 15... exf6 {[%clk 0:01:47.6]} 16. Be3 {[%clk 0:02:26.7]} 16... Nd6
{[%clk 0:01:36.3]} 17. O-O {[%clk 0:01:42]} 17... Qxe2 {[%clk 0:01:32.8]} 18.
Nxe2 {[%clk 0:01:42.9]} 18... Ne4 {[%clk 0:01:33]} 19. Nc3 {[%clk 0:01:36.5]}
19... Nxc3 {[%clk 0:01:25.9]} 20. bxc3 {[%clk 0:01:37.4]} 20... d6 {[%clk
0:01:24.8]} 21. a4 {[%clk 0:01:34.9]} 21... f5 {[%clk 0:01:15.9]} 22. Ra3 {[%clk
0:01:28.4]} 22... Nd7 {[%clk 0:01:15]} 23. Bf4 {[%clk 0:01:25.3]} 23... Ra6
{[%clk 0:01:12.7]} 24. a5 {[%clk 0:01:21.6]} 24... Rfa8 {[%clk 0:01:01.4]} 25.
Rb1 {[%clk 0:01:09.6]} 25... Nf6 {[%clk 0:00:25.2]} 26. c4 {[%clk 0:01:07.7]}
26... Ne4 {[%clk 0:00:25.2]} 27. Rb7 {[%clk 0:00:53.8]} 27... Bc3 {[%clk
0:00:17.6]} 28. Ng5 {[%clk 0:00:51.2]} 28... Nxg5 {[%clk 0:00:07.8]} 29. hxg5
{[%clk 0:00:52.1]} 29... Bxa5 {[%clk 0:00:06.4]} 30. Rd7 {[%clk 0:00:43.7]}
30... Bb4 {[%clk 0:00:02.4]} 31. Rxa6 {[%clk 0:00:43.2]} 31... Rxa6 {[%clk
0:00:03.3]} 32. Bxd6 {[%clk 0:00:43.4]} 32... Ra1+ {[%clk 0:00:03.9]} 33. Kh2
{[%clk 0:00:43.4]} 33... Rc1 {[%clk 0:00:04.8]} 34. Be5 {[%clk 0:00:41]} 34...
Rxc4 {[%clk 0:00:05]} 35. d6 {[%clk 0:00:41.4]} 35... Re4 {[%clk 0:00:05]} 36.
Rg7+ {[%clk 0:00:40.7]} 36... Kf8 {[%clk 0:00:04.8]} 37. d7 {[%clk 0:00:40.9]}
37... Ba5 {[%clk 0:00:05.4]} 38. Bf6 {[%clk 0:00:41.5]} 38... Re2 {[%clk
0:00:02.2]} 39. Kg3 {[%clk 0:00:38.4]} 39... Rd2 {[%clk 0:00:02.1]} 40. Rh7
{[%clk 0:00:38]} 40... Kg8 {[%clk 0:00:02.5]} 41. Rh8+ {[%clk 0:00:37.9]} 41...
Kf7 {[%clk 0:00:03.1]} 42. d8=Q {[%clk 0:00:38.3]} 42... Bxd8 {[%clk 0:00:03.6]}
43. Rxd8 {[%clk 0:00:38.7]} 43... Rxd8 {[%clk 0:00:02.2]} 44. Bxd8 {[%clk
0:00:39.6]} 44... Ke6 {[%clk 0:00:02.7]} 45. Bf6 {[%clk 0:00:40.2]} 45... Kd5
{[%clk 0:00:03.4]} 46. Kf4 {[%clk 0:00:40.8]} 46... Kc4 {[%clk 0:00:02]} 47. Ke3
{[%clk 0:00:41.1]} 47... Kb3 {[%clk 0:00:02]} 48. Kd2 {[%clk 0:00:41.2]} 48...
c4 {[%clk 0:00:02.9]} 49. f3 {[%clk 0:00:39.7]} 49... Kb4 {[%clk 0:00:03]} 50.
Kc2 {[%clk 0:00:39.9]} 50... Kb5 {[%clk 0:00:02.9]} 51. Kc3 {[%clk 0:00:40.2]}
51... Kc5 {[%clk 0:00:03.8]} 52. Bd4+ {[%clk 0:00:40.4]} 52... Kd5 {[%clk
0:00:04.3]} 53. Be3 {[%clk 0:00:40.9]} 53... Ke5 {[%clk 0:00:02.5]} 54. Kxc4
{[%clk 0:00:40.6]} 54... f4 {[%clk 0:00:03.4]} 55. Bb6 {[%clk 0:00:38.6]} 55...
Kf5 {[%clk 0:00:04.3]} 56. Bd8 {[%clk 0:00:38.8]} 56... h4 {[%clk 0:00:04.4]}
57. Kd4 {[%clk 0:00:38.7]} 57... h3 {[%clk 0:00:01.5]} 58. gxh3 {[%clk
0:00:39.6]} 58... Ke6 {[%clk 0:00:02.1]} 59. Ke4 {[%clk 0:00:40.1]} 59... Kd7
{[%clk 0:00:02.7]} 60. Bf6 {[%clk 0:00:40.5]} 1-0

[Event "*** Titled Tuesday Blitz"]
[Site "Chess.com"]
[Date "2020.04.14"]
[Round "1"]
[White "Rodalquilar"]
[Black "mattcolins2025"]
[Result "1-0"]
[WhiteElo "2627"]
[BlackElo "2276"]
[TimeControl "180+1"]
[EndTime "10:07:50 PDT"]
[Termination "Rodalquilar won by checkmate"]

1. d4 {[%clk 0:02:48.7]} 1... Nf6 {[%clk 0:02:59.5]} 2. Bf4 {[%clk 0:02:48.4]}
2... g6 {[%clk 0:02:59.2]} 3. e3 {[%clk 0:02:48.8]} 3... Bg7 {[%clk 0:02:58.5]}
4. Nf3 {[%clk 0:02:49.4]} 4... d6 {[%clk 0:02:58.7]} 5. Be2 {[%clk 0:02:49.9]}
5... O-O {[%clk 0:02:58.7]} 6. O-O {[%clk 0:02:50.2]} 6... Nfd7 {[%clk
0:02:55.2]} 7. h3 {[%clk 0:02:48.5]} 7... e5 {[%clk 0:02:55.1]} 8. Bh2 {[%clk
0:02:48.9]} 8... Nc6 {[%clk 0:02:54.4]} 9. c4 {[%clk 0:02:49.1]} 9... h6 {[%clk
0:02:54.2]} 10. Nc3 {[%clk 0:02:48.4]} 10... f5 {[%clk 0:02:53.1]} 11. Nd5
{[%clk 0:02:11.3]} 11... g5 {[%clk 0:02:48.9]} 12. dxe5 {[%clk 0:02:02.2]} 12...
Ncxe5 {[%clk 0:02:38.4]} 13. Qc2 {[%clk 0:02:00.3]} 13... Nxf3+ {[%clk
0:02:34.9]} 14. Bxf3 {[%clk 0:02:01.2]} 14... Ne5 {[%clk 0:02:33.7]} 15. Be2
{[%clk 0:02:01.4]} 15... Be6 {[%clk 0:02:31.8]} 16. Rfd1 {[%clk 0:01:55.2]}
16... c6 {[%clk 0:02:26.4]} 17. Nc3 {[%clk 0:01:54.8]} 17... Qe7 {[%clk
0:02:19.7]} 18. Rac1 {[%clk 0:01:45.7]} 18... Rad8 {[%clk 0:02:16.9]} 19. b3
{[%clk 0:01:45.5]} 19... f4 {[%clk 0:02:04.2]} 20. exf4 {[%clk 0:01:45]} 20...
gxf4 {[%clk 0:02:01.4]} 21. Bf1 {[%clk 0:01:30.7]} 21... Bf5 {[%clk 0:01:55.6]}
22. Qd2 {[%clk 0:01:28.8]} 22... Bxh3 {[%clk 0:01:52]} 23. Bxf4 {[%clk
0:01:27.6]} 23... Bg4 {[%clk 0:01:15.9]} 24. Re1 {[%clk 0:01:27.3]} 24... Qf7
{[%clk 0:01:10.4]} 25. Bg3 {[%clk 0:01:26.2]} 25... Bc8 {[%clk 0:00:56.7]} 26.
Ne4 {[%clk 0:01:23.1]} 26... d5 {[%clk 0:00:45.1]} 27. cxd5 {[%clk 0:01:24]}
27... cxd5 {[%clk 0:00:44.7]} 28. Nc5 {[%clk 0:01:13.1]} 28... Ng4 {[%clk
0:00:36.3]} 29. f3 {[%clk 0:01:05.3]} 29... Nf6 {[%clk 0:00:26.3]} 30. Nd3
{[%clk 0:01:03]} 30... b6 {[%clk 0:00:26]} 31. Ne5 {[%clk 0:01:02.6]} 31... Qh5
{[%clk 0:00:25.2]} 32. Nc6 {[%clk 0:00:57.2]} 32... Rde8 {[%clk 0:00:17.8]} 33.
Rxe8 {[%clk 0:00:48.4]} 33... Qxe8 {[%clk 0:00:15.3]} 34. Bb5 {[%clk 0:00:41.3]}
34... Qf7 {[%clk 0:00:13.4]} 35. Re1 {[%clk 0:00:37.1]} 35... Be6 {[%clk
0:00:13.2]} 36. Bd6 {[%clk 0:00:26.6]} 36... Re8 {[%clk 0:00:12.5]} 37. Ne5
{[%clk 0:00:25.4]} 37... Qh5 {[%clk 0:00:12.2]} 38. Bxe8 {[%clk 0:00:25]} 38...
Nxe8 {[%clk 0:00:12.5]} 39. Bb8 {[%clk 0:00:22.8]} 39... Bf6 {[%clk 0:00:09.3]}
40. Nd3 {[%clk 0:00:17.8]} 40... Bf7 {[%clk 0:00:09.4]} 41. Bf4 {[%clk
0:00:15.9]} 41... Qf5 {[%clk 0:00:09.3]} 42. Nf2 {[%clk 0:00:14.3]} 42... d4
{[%clk 0:00:08.7]} 43. Ng4 {[%clk 0:00:14.2]} 43... Bg7 {[%clk 0:00:08.4]} 44.
Bxh6 {[%clk 0:00:13.3]} 44... Qc5 {[%clk 0:00:06.3]} 45. Bxg7 {[%clk 0:00:13.4]}
45... Kxg7 {[%clk 0:00:06.8]} 46. Re5 {[%clk 0:00:13.6]} 46... Qc3 {[%clk
0:00:05]} 47. Qh6+ {[%clk 0:00:13.5]} 47... Kg8 {[%clk 0:00:04.4]} 48. Rg5+
{[%clk 0:00:13.6]} 48... Bg6 {[%clk 0:00:04.1]} 49. Rxg6+ {[%clk 0:00:14.1]}
49... Kf7 {[%clk 0:00:04.3]} 50. Qh7+ {[%clk 0:00:14.6]} 50... Kf8 {[%clk
0:00:04.5]} 51. Rg8# {[%clk 0:00:14.9]} 1-0

[Event "*** Titled Tuesday Blitz"]
[Site "Chess.com"]
[Date "2020.04.14"]
[Round "1"]
[White "vovachesss"]
[Black "erlesfar"]
[Result "1-0"]
[WhiteElo "2610"]
[BlackElo "2248"]
[TimeControl "180+1"]
[EndTime "10:07:51 PDT"]
[Termination "vovachesss won by resignation"]

1. e4 {[%clk 0:02:59.9]} 1... d5 {[%clk 0:02:59.1]} 2. d4 {[%clk 0:02:56.4]}
2... dxe4 {[%clk 0:02:55.3]} 3. Nc3 {[%clk 0:02:56.8]} 3... Nf6 {[%clk
0:02:54.4]} 4. f3 {[%clk 0:02:57]} 4... e3 {[%clk 0:02:53.7]} 5. Bxe3 {[%clk
0:02:56.9]} 5... c6 {[%clk 0:02:52.2]} 6. Qd2 {[%clk 0:02:56.8]} 6... e6 {[%clk
0:02:50.5]} 7. Bd3 {[%clk 0:02:56.5]} 7... Be7 {[%clk 0:02:50.2]} 8. Nge2 {[%clk
0:02:56.5]} 8... Nbd7 {[%clk 0:02:49.1]} 9. g4 {[%clk 0:02:54]} 9... O-O {[%clk
0:02:45.3]} 10. g5 {[%clk 0:02:50.1]} 10... Nd5 {[%clk 0:02:43.6]} 11. h4 {[%clk
0:02:51]} 11... c5 {[%clk 0:02:42.8]} 12. O-O-O {[%clk 0:02:44.4]} 12... b6
{[%clk 0:02:29.6]} 13. Be4 {[%clk 0:02:32.2]} 13... Bb7 {[%clk 0:02:14.3]} 14.
dxc5 {[%clk 0:02:31.5]} 14... Nxc5 {[%clk 0:02:11.4]} 15. Nxd5 {[%clk
0:02:13.2]} 15... Bxd5 {[%clk 0:02:05.4]} 16. Bxd5 {[%clk 0:02:11.4]} 16... exd5
{[%clk 0:02:04.5]} 17. Qxd5 {[%clk 0:02:12.3]} 17... Qc8 {[%clk 0:01:57.6]} 18.
Nd4 {[%clk 0:02:04.2]} 18... Rd8 {[%clk 0:01:49]} 19. Nc6 {[%clk 0:02:02.4]}
19... Rxd5 {[%clk 0:01:31.8]} 20. Nxe7+ {[%clk 0:02:02.5]} 20... Kf8 {[%clk
0:01:31.5]} 21. Nxc8 {[%clk 0:02:02.2]} 21... Rxd1+ {[%clk 0:01:31.3]} 22. Rxd1
{[%clk 0:02:03.1]} 22... Rxc8 {[%clk 0:01:31.3]} 23. b3 {[%clk 0:01:39.8]} 23...
Ke7 {[%clk 0:01:29.3]} 24. Kb2 {[%clk 0:01:39.5]} 24... Ke6 {[%clk 0:01:28.7]}
25. c4 {[%clk 0:01:36.8]} 25... f6 {[%clk 0:01:15.8]} 26. Kc3 {[%clk 0:01:27]}
26... Nd7 {[%clk 0:01:07.8]} 27. gxf6 {[%clk 0:01:12.6]} 27... gxf6 {[%clk
0:01:06.1]} 28. Bf4 {[%clk 0:00:35.2]} 28... Ne5 {[%clk 0:00:48.2]} 29. Bxe5
{[%clk 0:00:35]} 29... fxe5 {[%clk 0:00:47.8]} 30. b4 {[%clk 0:00:14.9]} 30...
Rf8 {[%clk 0:00:46.2]} 31. Rd3 {[%clk 0:00:15]} 31... Rf4 {[%clk 0:00:45.6]} 32.
c5 {[%clk 0:00:15.4]} 32... bxc5 {[%clk 0:00:44.4]} 33. bxc5 {[%clk 0:00:16.3]}
33... Rxh4 {[%clk 0:00:40.6]} 34. c6 {[%clk 0:00:16.6]} 34... Rh1 {[%clk
0:00:37.1]} 35. Kc2 {[%clk 0:00:13.8]} 35... Rh2+ {[%clk 0:00:35.9]} 36. Kb3
{[%clk 0:00:13.7]} 36... Rh1 {[%clk 0:00:33.4]} 37. Rc3 {[%clk 0:00:13.8]} 37...
Rb1+ {[%clk 0:00:28.8]} 38. Kc4 {[%clk 0:00:14]} 38... Rb8 {[%clk 0:00:28.5]}
39. Kc5 {[%clk 0:00:14.5]} 39... Rc8 {[%clk 0:00:23.9]} 40. Rc4 {[%clk
0:00:13.2]} 40... Kf5 {[%clk 0:00:20]} 41. Rh4 {[%clk 0:00:11.1]} 41... h5
{[%clk 0:00:18.5]} 42. Rxh5+ {[%clk 0:00:10.9]} 42... Kf4 {[%clk 0:00:19.1]} 43.
Kd6 {[%clk 0:00:09.7]} 43... Kxf3 {[%clk 0:00:18.7]} 44. Rxe5 {[%clk 0:00:08.1]}
44... Kf4 {[%clk 0:00:18.7]} 45. Re7 {[%clk 0:00:07.3]} 45... Kf5 {[%clk
0:00:18.5]} 46. c7 {[%clk 0:00:07.6]} 46... Rh8 {[%clk 0:00:17.9]} 47. Kd7
{[%clk 0:00:06.7]} 47... Rh1 {[%clk 0:00:17.1]} 48. c8=Q {[%clk 0:00:06.6]}
48... Rd1+ {[%clk 0:00:18]} 49. Ke8+ {[%clk 0:00:07.2]} 1-0

[Event "*** Titled Tuesday Blitz"]
[Site "Chess.com"]
[Date "2020.04.14"]
[Round "1"]
[White "Pittiplatsh"]
[Black "Arjun2002"]
[Result "1-0"]
[WhiteElo "2360"]
[BlackElo "2655"]
[TimeControl "180+1"]
[EndTime "10:07:52 PDT"]
[Termination "Pittiplatsh won by checkmate"]

1. e4 {[%clk 0:02:59.5]} 1... c5 {[%clk 0:02:59.4]} 2. Nf3 {[%clk 0:02:59.5]}
2... Nc6 {[%clk 0:02:59.6]} 3. d4 {[%clk 0:02:59.1]} 3... cxd4 {[%clk
0:03:00.5]} 4. Nxd4 {[%clk 0:02:59.6]} 4... Nf6 {[%clk 0:03:01]} 5. Nc3 {[%clk
0:02:59.7]} 5... d6 {[%clk 0:03:01.5]} 6. Bg5 {[%clk 0:02:57.9]} 6... e6 {[%clk
0:03:01.8]} 7. Qd2 {[%clk 0:02:57.5]} 7... a6 {[%clk 0:03:02.3]} 8. O-O-O {[%clk
0:02:57.4]} 8... Be7 {[%clk 0:03:00.3]} 9. f4 {[%clk 0:02:54.7]} 9... Bd7 {[%clk
0:02:59.4]} 10. Bxf6 {[%clk 0:02:50.8]} 10... Bxf6 {[%clk 0:02:54.3]} 11. Nf3
{[%clk 0:02:23.5]} 11... Be7 {[%clk 0:02:51.6]} 12. g4 {[%clk 0:02:19.1]} 12...
Rc8 {[%clk 0:02:48.8]} 13. Bd3 {[%clk 0:02:18]} 13... b5 {[%clk 0:02:47]} 14. g5
{[%clk 0:02:16.8]} 14... Qb6 {[%clk 0:02:40.4]} 15. Kb1 {[%clk 0:02:13.6]} 15...
Na5 {[%clk 0:02:33.7]} 16. h4 {[%clk 0:02:09.5]} 16... Nc4 {[%clk 0:02:32.2]}
17. Bxc4 {[%clk 0:01:50.5]} 17... Rxc4 {[%clk 0:02:19.5]} 18. Ne5 {[%clk
0:01:49.6]} 18... Rc7 {[%clk 0:02:05.1]} 19. Nxd7 {[%clk 0:01:48]} 19... Rxd7
{[%clk 0:02:05.6]} 20. f5 {[%clk 0:01:42.1]} 20... Qc6 {[%clk 0:01:53.9]} 21.
Rde1 {[%clk 0:01:14.7]} 21... b4 {[%clk 0:01:24.5]} 22. Ne2 {[%clk 0:01:14.5]}
22... e5 {[%clk 0:01:22.9]} 23. Ng3 {[%clk 0:01:06.8]} 23... a5 {[%clk
0:01:19.1]} 24. Rhf1 {[%clk 0:00:55.1]} 24... g6 {[%clk 0:01:16]} 25. f6 {[%clk
0:00:54.7]} 25... Bd8 {[%clk 0:01:15.9]} 26. h5 {[%clk 0:00:51.8]} 26... Bb6
{[%clk 0:01:09.8]} 27. Rh1 {[%clk 0:00:43.4]} 27... Bd4 {[%clk 0:00:54]} 28.
hxg6 {[%clk 0:00:42.5]} 28... fxg6 {[%clk 0:00:54]} 29. Ne2 {[%clk 0:00:40.4]}
29... Bc5 {[%clk 0:00:52.9]} 30. Nc1 {[%clk 0:00:40]} 30... Rf8 {[%clk
0:00:50.6]} 31. Qd3 {[%clk 0:00:39.1]} 31... Ba7 {[%clk 0:00:42.4]} 32. Rd1
{[%clk 0:00:37.3]} 32... a4 {[%clk 0:00:40.2]} 33. Qd5 {[%clk 0:00:36.7]} 33...
Qxd5 {[%clk 0:00:27.5]} 34. Rxd5 {[%clk 0:00:36.3]} 34... Bd4 {[%clk 0:00:22.6]}
35. Rh3 {[%clk 0:00:28.1]} 35... Kd8 {[%clk 0:00:17.4]} 36. Nd3 {[%clk
0:00:27.6]} 36... Kc7 {[%clk 0:00:17.1]} 37. Nxb4 {[%clk 0:00:26.3]} 37... h5
{[%clk 0:00:15.2]} 38. Rb5 {[%clk 0:00:18.8]} 38... Bc5 {[%clk 0:00:11.6]} 39.
Nd5+ {[%clk 0:00:16.6]} 39... Kc6 {[%clk 0:00:11.9]} 40. Ra5 {[%clk 0:00:16.8]}
40... Ra7 {[%clk 0:00:11.6]} 41. Rxa7 {[%clk 0:00:15.6]} 41... Bxa7 {[%clk
0:00:12.5]} 42. c3 {[%clk 0:00:15.1]} 42... Kd7 {[%clk 0:00:12.4]} 43. Kc2
{[%clk 0:00:15.4]} 43... Ke6 {[%clk 0:00:12.8]} 44. b4 {[%clk 0:00:13.5]} 44...
axb3+ {[%clk 0:00:12.4]} 45. axb3 {[%clk 0:00:14]} 45... Bf2 {[%clk 0:00:12.4]}
46. b4 {[%clk 0:00:12.8]} 46... h4 {[%clk 0:00:12.6]} 47. Kb3 {[%clk 0:00:12.1]}
47... Be1 {[%clk 0:00:12.5]} 48. b5 {[%clk 0:00:11.8]} 48... Bd2 {[%clk
0:00:12.8]} 49. Rxh4 {[%clk 0:00:07.9]} 49... Bxg5 {[%clk 0:00:13]} 50. Rh7
{[%clk 0:00:06.9]} 50... Bxf6 {[%clk 0:00:12.9]} 51. Nc7# {[%clk 0:00:07]} 1-0